[Event "Late-Titled-Tuesday-Blitz-January-30-2024"]
[Site "Chess.com"]
[Date "2024.01.30"]
[Round "7"]
[White "egnfanclub"]
[Black "zverr1"]
[Result "1-0"]
[WhiteElo "2369"]
[BlackElo "2559"]
[TimeControl "180+1"]
[EndTime "15:18:40 PST"]
[Termination "egnfanclub won on time"]

1. e4 {[%clk 0:03:00.9]} 1... c5 {[%clk 0:02:57.8]} 2. Nc3 {[%clk 0:03:00.2]}
2... g6 {[%clk 0:02:56.1]} 3. f4 {[%clk 0:03:01.1]} 3... Bg7 {[%clk 0:02:55.8]}
4. Nf3 {[%clk 0:03:02]} 4... Nc6 {[%clk 0:02:54.4]} 5. Bc4 {[%clk 0:03:01.5]}
5... e6 {[%clk 0:02:53.6]} 6. f5 {[%clk 0:03:01.6]} 6... Nge7 {[%clk 0:02:51.1]}
7. fxe6 {[%clk 0:03:00]} 7... fxe6 {[%clk 0:02:47.1]} 8. d3 {[%clk 0:03:00]}
8... O-O {[%clk 0:02:38.8]} 9. O-O {[%clk 0:02:59.4]} 9... d5 {[%clk 0:02:30.9]}
10. Bb3 {[%clk 0:02:59.1]} 10... Nd4 {[%clk 0:02:30.6]} 11. Bg5 {[%clk
0:02:55.9]} 11... Nxb3 {[%clk 0:02:19.1]} 12. axb3 {[%clk 0:02:55.3]} 12... h6
{[%clk 0:01:54.9]} 13. Bxe7 {[%clk 0:02:53.8]} 13... Qxe7 {[%clk 0:01:55.8]} 14.
exd5 {[%clk 0:02:54.3]} 14... Bxc3 {[%clk 0:01:56.5]} 15. d6 {[%clk 0:02:31.6]}
15... Qxd6 {[%clk 0:00:51.3]} 16. bxc3 {[%clk 0:02:30.3]} 16... b6 {[%clk
0:00:45.7]} 17. Qd2 {[%clk 0:02:10.1]} 17... Kg7 {[%clk 0:00:38.6]} 18. Qe3
{[%clk 0:02:01.1]} 18... Bb7 {[%clk 0:00:37.3]} 19. Ne5 {[%clk 0:01:53.9]} 19...
Rf5 {[%clk 0:00:30.5]} 20. Rxf5 {[%clk 0:01:14.5]} 20... exf5 {[%clk 0:00:31.4]}
21. Qxh6+ {[%clk 0:01:12.3]} 21... Kxh6 {[%clk 0:00:28.5]} 22. Nf7+ {[%clk
0:01:12.5]} 22... Kg7 {[%clk 0:00:28.7]} 23. Nxd6 {[%clk 0:01:13.4]} 23... Bc6
{[%clk 0:00:25.2]} 24. Re1 {[%clk 0:01:10.8]} 24... Kf6 {[%clk 0:00:21.8]} 25.
Nc4 {[%clk 0:01:03.4]} 25... Rd8 {[%clk 0:00:18.2]} 26. Kf2 {[%clk 0:01:01.6]}
26... g5 {[%clk 0:00:11.8]} 27. h3 {[%clk 0:01:00.1]} 27... f4 {[%clk
0:00:10.8]} 28. Ne5 {[%clk 0:00:52.6]} 28... Bd5 {[%clk 0:00:08.3]} 29. c4
{[%clk 0:00:50.4]} 29... Be6 {[%clk 0:00:07.9]} 30. Nf3 {[%clk 0:00:46.5]} 30...
Bf5 {[%clk 0:00:07.7]} 31. Ne5 {[%clk 0:00:35.6]} 31... Rd6 {[%clk 0:00:02.7]}
32. Kf3 {[%clk 0:00:27]} 32... a5 {[%clk 0:00:02.4]} 33. Ng4+ {[%clk 0:00:26.2]}
33... Bxg4+ {[%clk 0:00:01.7]} 34. Kxg4 {[%clk 0:00:27.1]} 34... Rd4 {[%clk
0:00:02]} 35. Re8 {[%clk 0:00:26.1]} 35... f3+ {[%clk 0:00:01.9]} 36. Kxf3
{[%clk 0:00:25.5]} 36... Rf4+ {[%clk 0:00:02.8]} 37. Ke3 {[%clk 0:00:24.5]}
37... Kf7 {[%clk 0:00:02]} 38. Rb8 {[%clk 0:00:23.7]} 38... Rf6 {[%clk
0:00:02.6]} 39. Rb7+ {[%clk 0:00:23.1]} 39... Kg6 {[%clk 0:00:02.9]} 40. Re7
{[%clk 0:00:22.5]} 40... Kh5 {[%clk 0:00:02]} 41. Re4 {[%clk 0:00:18.2]} 41...
Rf1 {[%clk 0:00:01.3]} 42. g3 {[%clk 0:00:17.1]} 42... Rc1 {[%clk 0:00:01.3]}
43. Kd2 {[%clk 0:00:17.4]} 43... Rg1 {[%clk 0:00:02.1]} 44. Re3 {[%clk
0:00:17.4]} 44... Kg6 {[%clk 0:00:01.7]} 45. Rf3 {[%clk 0:00:15.7]} 45... Kg7
{[%clk 0:00:01.8]} 46. Ke3 {[%clk 0:00:15.2]} 46... Rg2 {[%clk 0:00:01.9]} 47.
c3 {[%clk 0:00:15.1]} 47... Rb2 {[%clk 0:00:01.9]} 48. Rf5 {[%clk 0:00:14.9]}
48... Kg6 {[%clk 0:00:02.3]} 49. Rd5 {[%clk 0:00:13.7]} 49... Rxb3 {[%clk
0:00:02.8]} 50. Kd2 {[%clk 0:00:12.9]} 50... a4 {[%clk 0:00:02.1]} 51. Kc2
{[%clk 0:00:10.7]} 51... Kf6 {[%clk 0:00:02.6]} 52. h4 {[%clk 0:00:10.1]} 52...
gxh4 {[%clk 0:00:03.2]} 53. gxh4 {[%clk 0:00:11]} 53... Ra3 {[%clk 0:00:04.1]}
54. Kb2 {[%clk 0:00:10.5]} 54... Rb3+ {[%clk 0:00:04.3]} 55. Kc2 {[%clk
0:00:10.9]} 55... Ra3 {[%clk 0:00:05]} 56. Rd6+ {[%clk 0:00:11.4]} 56... Ke7
{[%clk 0:00:02.3]} 57. Rxb6 {[%clk 0:00:12.3]} 57... Ra2+ {[%clk 0:00:02.4]} 58.
Rb2 {[%clk 0:00:12.4]} 58... Ra1 {[%clk 0:00:02.4]} 59. Rb1 {[%clk 0:00:12.7]}
59... Ra2+ {[%clk 0:00:02.7]} 60. Rb2 {[%clk 0:00:12]} 60... Ra1 {[%clk
0:00:03.5]} 61. d4 {[%clk 0:00:12.4]} 1-0

[Event "Late-Titled-Tuesday-Blitz-January-30-2024"]
[Site "Chess.com"]
[Date "2024.01.30"]
[Round "7"]
[White "Oleksandr_Bortnyk"]
[Black "Zhigalko_Sergei"]
[Result "1/2-1/2"]
[WhiteElo "3096"]
[BlackElo "2944"]
[TimeControl "180+1"]
[EndTime "15:18:44 PST"]
[Termination "Game drawn by repetition"]

1. e4 {[%clk 0:03:00.9]} 1... c5 {[%clk 0:02:59.8]} 2. c3 {[%clk 0:03:01.1]}
2... d5 {[%clk 0:03:00.1]} 3. exd5 {[%clk 0:03:02]} 3... Qxd5 {[%clk 0:03:00.8]}
4. d4 {[%clk 0:03:02.5]} 4... Nf6 {[%clk 0:02:58.9]} 5. Be3 {[%clk 0:03:02.5]}
5... cxd4 {[%clk 0:02:49.9]} 6. cxd4 {[%clk 0:03:03.4]} 6... e6 {[%clk
0:02:49.4]} 7. Nc3 {[%clk 0:03:04.3]} 7... Bb4 {[%clk 0:02:48.6]} 8. Nf3 {[%clk
0:03:05.2]} 8... O-O {[%clk 0:02:45.5]} 9. Bd3 {[%clk 0:03:05.9]} 9... b6 {[%clk
0:02:44.2]} 10. Qe2 {[%clk 0:03:06.3]} 10... Bb7 {[%clk 0:02:31.9]} 11. O-O
{[%clk 0:03:05.5]} 11... Qh5 {[%clk 0:02:31.2]} 12. Rac1 {[%clk 0:02:37.5]}
12... Nbd7 {[%clk 0:02:22.3]} 13. Rfd1 {[%clk 0:02:13.9]} 13... Rfd8 {[%clk
0:02:04.1]} 14. a3 {[%clk 0:02:07.7]} 14... Bxc3 {[%clk 0:02:01.3]} 15. bxc3
{[%clk 0:02:07.1]} 15... Rac8 {[%clk 0:01:58.7]} 16. c4 {[%clk 0:02:01.6]} 16...
Be4 {[%clk 0:01:41]} 17. Bxe4 {[%clk 0:01:43.1]} 17... Nxe4 {[%clk 0:01:41.9]}
18. d5 {[%clk 0:01:42]} 18... Ndc5 {[%clk 0:01:31.8]} 19. Rd4 {[%clk 0:01:27.7]}
19... e5 {[%clk 0:00:49.4]} 20. Rdd1 {[%clk 0:01:27.7]} 20... f6 {[%clk
0:00:44.3]} 21. h3 {[%clk 0:01:22.7]} 21... Nd6 {[%clk 0:00:43.9]} 22. Qc2
{[%clk 0:01:14]} 22... Qg6 {[%clk 0:00:40.1]} 23. Qe2 {[%clk 0:01:02]} 23... Rc7
{[%clk 0:00:37]} 24. Nd2 {[%clk 0:00:49.5]} 24... Rdc8 {[%clk 0:00:36.2]} 25.
Bxc5 {[%clk 0:00:46]} 25... Rxc5 {[%clk 0:00:36.1]} 26. Rc3 {[%clk 0:00:46.9]}
26... Nb5 {[%clk 0:00:23.8]} 27. Rd3 {[%clk 0:00:22]} 27... Nd6 {[%clk
0:00:22.2]} 28. Rc3 {[%clk 0:00:17.7]} 28... Qf5 {[%clk 0:00:18.8]} 29. Rdc1
{[%clk 0:00:16.1]} 29... R5c7 {[%clk 0:00:17]} 30. a4 {[%clk 0:00:16]} 30... Nb7
{[%clk 0:00:16.3]} 31. Ne4 {[%clk 0:00:13.5]} 31... Qd7 {[%clk 0:00:16.5]} 32.
Rg3 {[%clk 0:00:14]} 32... Kh8 {[%clk 0:00:16]} 33. Qh5 {[%clk 0:00:13.4]} 33...
Nd6 {[%clk 0:00:14.4]} 34. Nxd6 {[%clk 0:00:11]} 34... Qxd6 {[%clk 0:00:15.3]}
35. Qg4 {[%clk 0:00:10.3]} 35... Rg8 {[%clk 0:00:11.4]} 36. h4 {[%clk
0:00:09.4]} 36... Qd7 {[%clk 0:00:10.3]} 37. Qe4 {[%clk 0:00:09.1]} 37... Qxa4
{[%clk 0:00:09.3]} 38. h5 {[%clk 0:00:08.7]} 38... Qd7 {[%clk 0:00:08.5]} 39.
Rd1 {[%clk 0:00:05.7]} 39... Qd6 {[%clk 0:00:07.5]} 40. Qg4 {[%clk 0:00:06]}
40... h6 {[%clk 0:00:07.3]} 41. Qe4 {[%clk 0:00:04.8]} 41... Rgc8 {[%clk
0:00:07.1]} 42. Qg6 {[%clk 0:00:04.2]} 42... Qd7 {[%clk 0:00:07.4]} 43. Ra1
{[%clk 0:00:01.9]} 43... Rxc4 {[%clk 0:00:07.4]} 44. Re1 {[%clk 0:00:01.4]}
44... Rd4 {[%clk 0:00:07.4]} 45. Kh2 {[%clk 0:00:01.5]} 45... Rh4+ {[%clk
0:00:07.2]} 46. Kg1 {[%clk 0:00:01.8]} 46... Rd4 {[%clk 0:00:07.5]} 47. Kh2
{[%clk 0:00:01.7]} 47... Rxd5 {[%clk 0:00:08.1]} 48. Ra1 {[%clk 0:00:01.7]}
48... Rd4 {[%clk 0:00:08.3]} 49. Raa3 {[%clk 0:00:01.7]} 49... Rh4+ {[%clk
0:00:07.8]} 50. Rh3 {[%clk 0:00:02.4]} 50... Rxh3+ {[%clk 0:00:08]} 51. Rxh3
{[%clk 0:00:03.3]} 51... b5 {[%clk 0:00:08.3]} 52. Rg3 {[%clk 0:00:03.4]} 52...
b4 {[%clk 0:00:08.4]} 53. Rd3 {[%clk 0:00:03.8]} 53... Qb7 {[%clk 0:00:07.6]}
54. Qg4 {[%clk 0:00:03.6]} 54... Rb8 {[%clk 0:00:06.8]} 55. Rd7 {[%clk
0:00:04.1]} 55... Qxd7 {[%clk 0:00:05]} 56. Qxd7 {[%clk 0:00:05]} 56... b3
{[%clk 0:00:05.6]} 57. Qc7 {[%clk 0:00:05.7]} 57... Rb4 {[%clk 0:00:04.3]} 58.
Qc5 {[%clk 0:00:03.8]} 58... Rb6 {[%clk 0:00:03.8]} 59. Qc8+ {[%clk 0:00:03.6]}
59... Kh7 {[%clk 0:00:04.6]} 60. Qf5+ {[%clk 0:00:04.2]} 60... Kh8 {[%clk
0:00:05.3]} 61. Qc8+ {[%clk 0:00:04.6]} 61... Kh7 {[%clk 0:00:06]} 62. Qf5+
{[%clk 0:00:03]} 62... Kg8 {[%clk 0:00:06]} 63. Qc8+ {[%clk 0:00:02.4]} 63...
Kh7 {[%clk 0:00:06.2]} 1/2-1/2

[Event "Late-Titled-Tuesday-Blitz-January-30-2024"]
[Site "Chess.com"]
[Date "2024.01.30"]
[Round "7"]
[White "Fh2411"]
[Black "vladoboch"]
[Result "1-0"]
[WhiteElo "2587"]
[BlackElo "2474"]
[TimeControl "180+1"]
[EndTime "15:18:44 PST"]
[Termination "Fh2411 won by checkmate"]

1. d4 {[%clk 0:03:00.9]} 1... Nf6 {[%clk 0:02:59.7]} 2. Nf3 {[%clk 0:03:01.2]}
2... g6 {[%clk 0:02:59.3]} 3. c4 {[%clk 0:03:01.1]} 3... Bg7 {[%clk 0:02:59.8]}
4. Nc3 {[%clk 0:03:01.7]} 4... O-O {[%clk 0:03:00.2]} 5. Bg5 {[%clk 0:03:02.1]}
5... d6 {[%clk 0:03:01.1]} 6. e3 {[%clk 0:03:02.6]} 6... Nbd7 {[%clk 0:02:59]}
7. Be2 {[%clk 0:03:00]} 7... c5 {[%clk 0:02:59.3]} 8. O-O {[%clk 0:02:56.2]}
8... h6 {[%clk 0:02:58.3]} 9. Bh4 {[%clk 0:02:56]} 9... g5 {[%clk 0:02:58.6]}
10. Bg3 {[%clk 0:02:56.4]} 10... Nh5 {[%clk 0:02:54]} 11. Rc1 {[%clk 0:02:40.3]}
11... Nxg3 {[%clk 0:02:47.5]} 12. hxg3 {[%clk 0:02:28.4]} 12... Nf6 {[%clk
0:02:42.1]} 13. Qc2 {[%clk 0:02:21.1]} 13... Be6 {[%clk 0:02:27.3]} 14. Rfd1
{[%clk 0:02:20.3]} 14... Qc8 {[%clk 0:02:24.8]} 15. b3 {[%clk 0:02:04.7]} 15...
Bf5 {[%clk 0:02:20.7]} 16. Bd3 {[%clk 0:02:04.6]} 16... Bxd3 {[%clk 0:02:20.1]}
17. Qxd3 {[%clk 0:02:05.5]} 17... Qc6 {[%clk 0:01:51.9]} 18. e4 {[%clk
0:01:57.7]} 18... Nd7 {[%clk 0:01:49.9]} 19. Qe2 {[%clk 0:01:31.5]} 19... Rfe8
{[%clk 0:01:20]} 20. g4 {[%clk 0:01:25]} 20... Qb6 {[%clk 0:01:00.2]} 21. Nd5
{[%clk 0:01:23.4]} 21... Qa5 {[%clk 0:00:56.7]} 22. Ne3 {[%clk 0:01:18.2]} 22...
e6 {[%clk 0:00:50.1]} 23. dxc5 {[%clk 0:01:13.7]} 23... Qxc5 {[%clk 0:00:43.7]}
24. Rd3 {[%clk 0:01:06.8]} 24... Qc7 {[%clk 0:00:39.2]} 25. Rdd1 {[%clk
0:00:54.8]} 25... a5 {[%clk 0:00:36]} 26. Nd4 {[%clk 0:00:49.1]} 26... Qb6
{[%clk 0:00:26.4]} 27. Nb5 {[%clk 0:00:48.6]} 27... Be5 {[%clk 0:00:22.6]} 28.
Rc2 {[%clk 0:00:38.8]} 28... Nc5 {[%clk 0:00:22.6]} 29. Nf1 {[%clk 0:00:33.6]}
29... Red8 {[%clk 0:00:22.9]} 30. Rcd2 {[%clk 0:00:31.8]} 30... Qc6 {[%clk
0:00:22.4]} 31. f3 {[%clk 0:00:26]} 31... Bf4 {[%clk 0:00:22.4]} 32. Rc2 {[%clk
0:00:21.7]} 32... Rd7 {[%clk 0:00:18.4]} 33. g3 {[%clk 0:00:22]} 33... Be5
{[%clk 0:00:17.8]} 34. Kg2 {[%clk 0:00:22.7]} 34... Rad8 {[%clk 0:00:17.8]} 35.
Rcd2 {[%clk 0:00:20]} 35... Na6 {[%clk 0:00:09.6]} 36. Qe3 {[%clk 0:00:14.2]}
36... Nc7 {[%clk 0:00:09.3]} 37. Nd4 {[%clk 0:00:11.9]} 37... Qb6 {[%clk
0:00:08]} 38. f4 {[%clk 0:00:11.2]} 38... Bf6 {[%clk 0:00:07.2]} 39. Qf2 {[%clk
0:00:08.3]} 39... d5 {[%clk 0:00:06.8]} 40. e5 {[%clk 0:00:07.2]} 40... Be7
{[%clk 0:00:04.1]} 41. f5 {[%clk 0:00:05.1]} 41... Bc5 {[%clk 0:00:04.1]} 42.
fxe6 {[%clk 0:00:03.6]} 42... Nxe6 {[%clk 0:00:04.2]} 43. Qf6 {[%clk 0:00:03.4]}
43... Nxd4 {[%clk 0:00:03.5]} 44. Qxb6 {[%clk 0:00:03.5]} 44... Bxb6 {[%clk
0:00:04]} 45. c5 {[%clk 0:00:01.9]} 45... Bxc5 {[%clk 0:00:04.2]} 46. Rxd4
{[%clk 0:00:02.5]} 46... Bxd4 {[%clk 0:00:04.5]} 47. Rxd4 {[%clk 0:00:03.4]}
47... Rc8 {[%clk 0:00:03.5]} 48. Ne3 {[%clk 0:00:03.7]} 48... Rc3 {[%clk
0:00:03.7]} 49. Nxd5 {[%clk 0:00:03.6]} 49... Rc5 {[%clk 0:00:02.6]} 50. Nf6+
{[%clk 0:00:03]} 50... Kg7 {[%clk 0:00:02.8]} 51. Nxd7 {[%clk 0:00:03.9]} 51...
Rc2+ {[%clk 0:00:03.4]} 52. Kf3 {[%clk 0:00:04.5]} 52... Rxa2 {[%clk 0:00:04.3]}
53. Nf6 {[%clk 0:00:02.9]} 53... b5 {[%clk 0:00:04.4]} 54. Rd8 {[%clk
0:00:02.8]} 54... h5 {[%clk 0:00:03.1]} 55. Rg8+ {[%clk 0:00:03]} 55... Kh6
{[%clk 0:00:03.5]} 56. gxh5 {[%clk 0:00:02]} 56... a4 {[%clk 0:00:02.7]} 57.
Rh8+ {[%clk 0:00:01.6]} 57... Kg7 {[%clk 0:00:03.2]} 58. Rh7+ {[%clk 0:00:02.4]}
58... Kf8 {[%clk 0:00:03.2]} 59. h6 {[%clk 0:00:03.3]} 59... axb3 {[%clk
0:00:03.1]} 60. Rh8+ {[%clk 0:00:04.2]} 60... Ke7 {[%clk 0:00:03.3]} 61. Re8#
{[%clk 0:00:04.6]} 1-0

[Event "Late-Titled-Tuesday-Blitz-January-30-2024"]
[Site "Chess.com"]
[Date "2024.01.30"]
[Round "7"]
[White "Burgsvik"]
[Black "emeli_chess"]
[Result "0-1"]
[WhiteElo "2285"]
[BlackElo "2473"]
[TimeControl "180+1"]
[EndTime "15:18:45 PST"]
[Termination "emeli_chess won by resignation"]

1. e4 {[%clk 0:02:16.8]} 1... c5 {[%clk 0:02:58.1]} 2. Nf3 {[%clk 0:02:16.8]}
2... d6 {[%clk 0:02:58.4]} 3. d4 {[%clk 0:02:17.7]} 3... cxd4 {[%clk 0:02:58.7]}
4. Nxd4 {[%clk 0:02:18.3]} 4... Nf6 {[%clk 0:02:58.4]} 5. Nc3 {[%clk 0:02:18.8]}
5... a6 {[%clk 0:02:58.1]} 6. Be2 {[%clk 0:02:17.8]} 6... e6 {[%clk 0:02:57.2]}
7. O-O {[%clk 0:02:17.2]} 7... Be7 {[%clk 0:02:57.4]} 8. Kh1 {[%clk 0:02:17.8]}
8... O-O {[%clk 0:02:57.5]} 9. f4 {[%clk 0:02:18.2]} 9... Qc7 {[%clk 0:02:57.3]}
10. f5 {[%clk 0:02:18.4]} 10... Nc6 {[%clk 0:02:54.7]} 11. Bg5 {[%clk
0:02:15.8]} 11... Nxd4 {[%clk 0:02:44.3]} 12. Qxd4 {[%clk 0:02:14.7]} 12... e5
{[%clk 0:02:36.9]} 13. Qd2 {[%clk 0:02:12]} 13... b5 {[%clk 0:02:23.6]} 14. Bxf6
{[%clk 0:02:11.2]} 14... Bxf6 {[%clk 0:02:23.6]} 15. Nd5 {[%clk 0:02:11.3]}
15... Qd8 {[%clk 0:02:23.7]} 16. c4 {[%clk 0:02:10.9]} 16... bxc4 {[%clk
0:02:21.2]} 17. Bxc4 {[%clk 0:02:10]} 17... Bb7 {[%clk 0:02:21.3]} 18. b3 {[%clk
0:02:09.7]} 18... Bg5 {[%clk 0:02:07.9]} 19. Qd3 {[%clk 0:02:09.7]} 19... Qa5
{[%clk 0:01:43.9]} 20. a4 {[%clk 0:02:06]} 20... Qd2 {[%clk 0:01:36.8]} 21. Rad1
{[%clk 0:02:03.1]} 21... Qxd3 {[%clk 0:01:36.2]} 22. Rxd3 {[%clk 0:02:02.2]}
22... Bd8 {[%clk 0:01:12.3]} 23. Rfd1 {[%clk 0:01:58.7]} 23... Rc8 {[%clk
0:01:08.8]} 24. Kg1 {[%clk 0:01:55.4]} 24... g6 {[%clk 0:00:56.2]} 25. g4 {[%clk
0:01:54]} 25... Kg7 {[%clk 0:00:52]} 26. Kg2 {[%clk 0:01:53.2]} 26... f6 {[%clk
0:00:46.1]} 27. Kf3 {[%clk 0:01:50.5]} 27... g5 {[%clk 0:00:43.7]} 28. Rh1
{[%clk 0:01:43.8]} 28... h5 {[%clk 0:00:42.9]} 29. h4 {[%clk 0:01:42.1]} 29...
hxg4+ {[%clk 0:00:42.1]} 30. Kxg4 {[%clk 0:01:42.2]} 30... Rh8 {[%clk 0:00:41]}
31. Rdh3 {[%clk 0:01:39.3]} 31... gxh4 {[%clk 0:00:40.2]} 32. Rxh4 {[%clk
0:01:39.3]} 32... Rxh4+ {[%clk 0:00:40.5]} 33. Rxh4 {[%clk 0:01:35]} 33... Ba5
{[%clk 0:00:28.1]} 34. Kf3 {[%clk 0:01:33.3]} 34... Bd2 {[%clk 0:00:25.9]} 35.
Rg4+ {[%clk 0:01:32.5]} 35... Bg5 {[%clk 0:00:24.8]} 36. Rg2 {[%clk 0:01:16.6]}
36... Rh8 {[%clk 0:00:24.7]} 37. Ke2 {[%clk 0:01:16.5]} 37... Rh1 {[%clk
0:00:24]} 38. Kd3 {[%clk 0:01:16]} 38... Re1 {[%clk 0:00:22.4]} 39. Kc3 {[%clk
0:01:13.4]} 39... Rxe4 {[%clk 0:00:21.2]} 40. Rg3 {[%clk 0:01:04.5]} 40... Rd4
{[%clk 0:00:21]} 41. Nc7 {[%clk 0:00:58.2]} 41... Kh6 {[%clk 0:00:15.8]} 42.
Bxa6 {[%clk 0:00:56.5]} 42... Be4 {[%clk 0:00:13.3]} 43. Bc8 {[%clk 0:00:54.8]}
43... Bd2+ {[%clk 0:00:11.7]} 44. Kb2 {[%clk 0:00:52.4]} 44... Bb4 {[%clk
0:00:11.7]} 45. Ne6 {[%clk 0:00:49.6]} 45... Rd2+ {[%clk 0:00:10.6]} 46. Kc1
{[%clk 0:00:48.2]} 46... Rf2 {[%clk 0:00:07.7]} 47. Nf8 {[%clk 0:00:46.1]} 47...
Rf1+ {[%clk 0:00:07]} 48. Kb2 {[%clk 0:00:44.5]} 48... Rf2+ {[%clk 0:00:07]} 49.
Kc1 {[%clk 0:00:44.6]} 49... Rc2+ {[%clk 0:00:06.5]} 50. Kd1 {[%clk 0:00:44.1]}
50... Rxc8 {[%clk 0:00:06.5]} 51. Rg6+ {[%clk 0:00:43.1]} 51... Kh5 {[%clk
0:00:06.2]} 52. Rg8 {[%clk 0:00:43.6]} 52... Bd3 {[%clk 0:00:05.7]} 53. Rh8+
{[%clk 0:00:42.2]} 53... Kg5 {[%clk 0:00:05.5]} 54. Ne6+ {[%clk 0:00:41.9]}
54... Kxf5 {[%clk 0:00:05.8]} 55. Rxc8 {[%clk 0:00:41.5]} 55... Kxe6 {[%clk
0:00:05.7]} 56. Rb8 {[%clk 0:00:41.6]} 56... Bc3 {[%clk 0:00:05.4]} 57. b4
{[%clk 0:00:40.4]} 57... e4 {[%clk 0:00:04.5]} 58. b5 {[%clk 0:00:40.2]} 58...
Kd5 {[%clk 0:00:04.5]} 59. b6 {[%clk 0:00:39.6]} 59... e3 {[%clk 0:00:04.6]} 60.
Re8 {[%clk 0:00:38]} 60... e2+ {[%clk 0:00:03.5]} 61. Rxe2 {[%clk 0:00:34.2]}
61... Bxe2+ {[%clk 0:00:03.6]} 62. Kxe2 {[%clk 0:00:34.8]} 62... Kc6 {[%clk
0:00:03.6]} 63. Kd3 {[%clk 0:00:34.9]} 63... Ba5 {[%clk 0:00:03.4]} 64. Ke4
{[%clk 0:00:34.1]} 64... Bxb6 {[%clk 0:00:03.1]} 65. Kf5 {[%clk 0:00:35]} 65...
d5 {[%clk 0:00:03.3]} 66. Kxf6 {[%clk 0:00:35.1]} 66... d4 {[%clk 0:00:03.7]}
67. a5 {[%clk 0:00:34.9]} 67... d3 {[%clk 0:00:03.3]} 68. axb6 {[%clk
0:00:33.7]} 68... Kxb6 {[%clk 0:00:03.6]} 69. Ke5 {[%clk 0:00:32.5]} 69... d2
{[%clk 0:00:04]} 70. Ke4 {[%clk 0:00:33.4]} 70... d1=Q {[%clk 0:00:04.4]} 71.
Ke5 {[%clk 0:00:34.3]} 71... Qd3 {[%clk 0:00:04.3]} 72. Kf4 {[%clk 0:00:34.2]}
72... Kc5 {[%clk 0:00:04.7]} 73. Ke5 {[%clk 0:00:34.4]} 73... Qe3+ {[%clk
0:00:04.5]} 0-1

[Event "Late-Titled-Tuesday-Blitz-January-30-2024"]
[Site "Chess.com"]
[Date "2024.01.30"]
[Round "7"]
[White "topalovkramnik"]
[Black "GMRafpig"]
[Result "1/2-1/2"]
[WhiteElo "2478"]
[BlackElo "2742"]
[TimeControl "180+1"]
[EndTime "15:18:49 PST"]
[Termination "Game drawn by repetition"]

1. e4 {[%clk 0:03:00.9]} 1... c5 {[%clk 0:02:58.9]} 2. Nf3 {[%clk 0:02:59.9]}
2... Nc6 {[%clk 0:02:58.7]} 3. d4 {[%clk 0:02:59.9]} 3... cxd4 {[%clk
0:02:58.5]} 4. Nxd4 {[%clk 0:03:00.8]} 4... e5 {[%clk 0:02:57.7]} 5. Nb5 {[%clk
0:02:36.6]} 5... d6 {[%clk 0:02:56.7]} 6. c4 {[%clk 0:02:36.5]} 6... g6 {[%clk
0:02:53.5]} 7. Be2 {[%clk 0:02:35.3]} 7... a6 {[%clk 0:02:52.4]} 8. N5c3 {[%clk
0:02:35.1]} 8... Bg7 {[%clk 0:02:49.9]} 9. O-O {[%clk 0:02:35.4]} 9... Nge7
{[%clk 0:02:48.9]} 10. Nd5 {[%clk 0:02:35.9]} 10... Nxd5 {[%clk 0:02:46.3]} 11.
cxd5 {[%clk 0:02:34.7]} 11... Nd4 {[%clk 0:02:46.7]} 12. Nc3 {[%clk 0:02:33.9]}
12... O-O {[%clk 0:02:42.1]} 13. Be3 {[%clk 0:02:32.2]} 13... Bd7 {[%clk
0:02:18.5]} 14. Rc1 {[%clk 0:02:29.1]} 14... b5 {[%clk 0:02:15.4]} 15. Bd3
{[%clk 0:02:26.6]} 15... Qa5 {[%clk 0:01:36]} 16. a3 {[%clk 0:00:50.8]} 16... b4
{[%clk 0:01:33.9]} 17. Ne2 {[%clk 0:00:48.5]} 17... bxa3 {[%clk 0:01:27.3]} 18.
bxa3 {[%clk 0:00:43.3]} 18... Qxa3 {[%clk 0:01:16.1]} 19. Ra1 {[%clk 0:00:42.7]}
19... Qb4 {[%clk 0:01:14.5]} 20. Nxd4 {[%clk 0:00:39.9]} 20... exd4 {[%clk
0:01:14.2]} 21. Rb1 {[%clk 0:00:39.9]} 21... Qxb1 {[%clk 0:01:02.5]} 22. Qxb1
{[%clk 0:00:37.8]} 22... dxe3 {[%clk 0:01:02.9]} 23. fxe3 {[%clk 0:00:34.9]}
23... a5 {[%clk 0:00:59.8]} 24. Qb7 {[%clk 0:00:33.1]} 24... Rfd8 {[%clk
0:00:59]} 25. Rf2 {[%clk 0:00:22.5]} 25... a4 {[%clk 0:00:57.6]} 26. Ra2 {[%clk
0:00:22.4]} 26... a3 {[%clk 0:00:56.5]} 27. Qb4 {[%clk 0:00:20.5]} 27... Bb2
{[%clk 0:00:52.9]} 28. Rxb2 {[%clk 0:00:14.7]} 28... axb2 {[%clk 0:00:52]} 29.
Qxb2 {[%clk 0:00:15.6]} 29... Be8 {[%clk 0:00:47.1]} 30. Qf6 {[%clk 0:00:15.1]}
30... Rab8 {[%clk 0:00:34]} 31. h4 {[%clk 0:00:14.1]} 31... h5 {[%clk
0:00:33.7]} 32. e5 {[%clk 0:00:11.4]} 32... dxe5 {[%clk 0:00:28.7]} 33. Qxe5
{[%clk 0:00:12.3]} 33... Bb5 {[%clk 0:00:23.6]} 34. Bc2 {[%clk 0:00:07.7]} 34...
Re8 {[%clk 0:00:22.8]} 35. Qd4 {[%clk 0:00:07.2]} 35... Rbc8 {[%clk 0:00:21.6]}
36. Bd3 {[%clk 0:00:04]} 36... Bxd3 {[%clk 0:00:21.5]} 37. Qxd3 {[%clk
0:00:04.9]} 37... Rcd8 {[%clk 0:00:21.4]} 38. e4 {[%clk 0:00:04.3]} 38... Re7
{[%clk 0:00:19.5]} 39. Kf2 {[%clk 0:00:04.5]} 39... Rde8 {[%clk 0:00:19.8]} 40.
Kf3 {[%clk 0:00:05]} 40... Kf8 {[%clk 0:00:18.2]} 41. Qd4 {[%clk 0:00:05.6]}
41... Kg8 {[%clk 0:00:17]} 42. Kf4 {[%clk 0:00:05.6]} 42... f6 {[%clk
0:00:13.4]} 43. g3 {[%clk 0:00:04.4]} 43... Kf7 {[%clk 0:00:12.9]} 44. d6 {[%clk
0:00:04.5]} 44... Rd7 {[%clk 0:00:12.9]} 45. Qd5+ {[%clk 0:00:04.4]} 45... Re6
{[%clk 0:00:13.2]} 46. Qa8 {[%clk 0:00:02.8]} 46... Rexd6 {[%clk 0:00:11.9]} 47.
Qh8 {[%clk 0:00:03.4]} 47... Re7 {[%clk 0:00:09.4]} 48. Qh7+ {[%clk 0:00:04]}
48... Ke6 {[%clk 0:00:09.9]} 49. Qxg6 {[%clk 0:00:04.7]} 49... Kd7 {[%clk
0:00:07.3]} 50. Qxh5 {[%clk 0:00:05.2]} 50... Rde6 {[%clk 0:00:07.4]} 51. Qb5+
{[%clk 0:00:05.6]} 51... Kc7 {[%clk 0:00:07.3]} 52. Qc5+ {[%clk 0:00:05.3]}
52... Kd7 {[%clk 0:00:07.7]} 53. Qd5+ {[%clk 0:00:05.8]} 53... Ke8 {[%clk
0:00:06.9]} 54. h5 {[%clk 0:00:05.4]} 54... Re5 {[%clk 0:00:07.5]} 55. Qa8+
{[%clk 0:00:04.5]} 55... Kf7 {[%clk 0:00:07.8]} 56. g4 {[%clk 0:00:04.4]} 56...
Kg7 {[%clk 0:00:07.5]} 57. Kf3 {[%clk 0:00:03.4]} 57... Rg5 {[%clk 0:00:05.8]}
58. Kf4 {[%clk 0:00:03.9]} 58... Rge5 {[%clk 0:00:06]} 59. Qc6 {[%clk
0:00:04.4]} 59... Kf7 {[%clk 0:00:04.7]} 60. Qa8 {[%clk 0:00:02.6]} 60... Kg7
{[%clk 0:00:05.2]} 1/2-1/2